{"text_format":"3","workbook":"xlsx","n_sheets":3,"sheets":["Dienotvarkė","Įvykių planavimo priemonė","Laiko intervalai"],"not_rendered":{"defined_names":21},"read":"whole","date_system":"1900"}

{"sheet":"Dienotvarkė","index":0,"n_rows":76,"n_cols":13,"rows_kept":76,"merged":[[0,1,0,2],[1,1,5,2],[2,12,4,12],[3,7,4,7],[5,12,7,12],[6,1,8,2],[8,12,10,12],[9,7,10,7],[10,1,10,2],[11,12,13,12],[14,12,16,12],[15,7,16,7],[17,12,19,12],[18,1,18,2],[20,12,22,12],[21,7,22,7],[23,12,25,12],[24,1,24,2],[25,1,25,2],[26,7,27,7],[26,12,28,12],[29,12,31,12],[31,7,32,7],[32,12,34,12]]}
[null,"Dienotvarkė"]
[null,{"$f":"IFERROR(DAY(DatosReikš),\"\")","v":22},null,null,"Laikas",{"$f":"IFERROR(UPPER(TEXT(DATE(AtskaitosMetai,MėnesioNumeris,AtaskaitosDiena),\"d mmmm yyyy\")),\"\")","v":"22 BIRŽELIS 2022"},null,"SAVAITĖS APŽVALGA",{"$nulls":3},"PASTABOS / UŽDUOČIŲ SĄRAŠAS"]
[{"$nulls":4},"Laikas","Aprašas",null,{"$f":"IFERROR(TEXT(DATEVALUE(DatosReikš)+1,\"dddd\"),\"\")","v":"ketvirtadienis"},{"$f":"IFERROR(INDEX(Įvykių_planavimo_priemonė[],MATCH($H$6&\"|\"&ROW(A1),Įvykių_planavimo_priemonė[UNIKALI REIKŠMĖ (APSKAIČIUOTA)],0),2),\"\")","v":""},{"$f":"IFERROR(INDEX(Įvykių_planavimo_priemonė[],MATCH($H$6&\"|\"&ROW(A1),Įvykių_planavimo_priemonė[UNIKALI REIKŠMĖ (APSKAIČIUOTA)],0),3),\"\")","v":""},null,null,"Paimti išvalytus drabužius"]
[{"$nulls":4},{"$f":"'Laiko intervalai'!E3","v":"06:00:00"},{"$f":"IFERROR(INDEX(Įvykių_planavimo_priemonė[],MATCH(DATEVALUE(DatosReikš)&Dienotvarkė[[#This Row],[Laikas]],IeškosDataIrLaikas,0),3),\"\")","v":"Keltis"},null,{"$f":"IFERROR(TEXT(DATEVALUE(DatosReikš)+1,\"d\"),\"\")","v":"23"},{"$f":"IFERROR(INDEX(Įvykių_planavimo_priemonė[],MATCH($H$6&\"|\"&ROW(A2),Įvykių_planavimo_priemonė[UNIKALI REIKŠMĖ (APSKAIČIUOTA)],0),2),\"\")","v":"06:30:00"},{"$f":"IFERROR(INDEX(Įvykių_planavimo_priemonė[],MATCH($H$6&\"|\"&ROW(A2),Įvykių_planavimo_priemonė[UNIKALI REIKŠMĖ (APSKAIČIUOTA)],0),3),\"\")","v":"Pusryčiai"}]
[{"$nulls":4},{"$f":"'Laiko intervalai'!E4","v":"06:15:00"},{"$f":"IFERROR(INDEX(Įvykių_planavimo_priemonė[],MATCH(DATEVALUE(DatosReikš)&Dienotvarkė[[#This Row],[Laikas]],IeškosDataIrLaikas,0),3),\"\")","v":""},null,null,{"$f":"IFERROR(INDEX(Įvykių_planavimo_priemonė[],MATCH($H$6&\"|\"&ROW(A3),Įvykių_planavimo_priemonė[UNIKALI REIKŠMĖ (APSKAIČIUOTA)],0),2),\"\")","v":""},{"$f":"IFERROR(INDEX(Įvykių_planavimo_priemonė[],MATCH($H$6&\"|\"&ROW(A3),Įvykių_planavimo_priemonė[UNIKALI REIKŠMĖ (APSKAIČIUOTA)],0),3),\"\")","v":""}]
[{"$nulls":4},{"$f":"'Laiko intervalai'!E5","v":"06:30:00"},{"$f":"IFERROR(INDEX(Įvykių_planavimo_priemonė[],MATCH(DATEVALUE(DatosReikš)&Dienotvarkė[[#This Row],[Laikas]],IeškosDataIrLaikas,0),3),\"\")","v":"Dušas"},null,{"$f":"IFERROR(DatosReikš+1,\"\")","v":"2022-06-23"},{"$f":"IFERROR(INDEX(Įvykių_planavimo_priemonė[],MATCH($H$6&\"|\"&ROW(A4),Įvykių_planavimo_priemonė[UNIKALI REIKŠMĖ (APSKAIČIUOTA)],0),2),\"\")","v":""},{"$f":"IFERROR(INDEX(Įvykių_planavimo_priemonė[],MATCH($H$6&\"|\"&ROW(A4),Įvykių_planavimo_priemonė[UNIKALI REIKŠMĖ (APSKAIČIUOTA)],0),3),\"\")","v":""},null,null,"Paskambinti į kabelinės televizijos įmonę"]
[null,{"$f":"IFERROR(TEXT(DatosReikš,\"dddd\"),\"\")","v":"trečiadienis"},null,null,{"$f":"'Laiko intervalai'!E6","v":"06:45:00"},{"$f":"IFERROR(INDEX(Įvykių_planavimo_priemonė[],MATCH(DATEVALUE(DatosReikš)&Dienotvarkė[[#This Row],[Laikas]],IeškosDataIrLaikas,0),3),\"\")","v":""},null,null,{"$f":"IFERROR(INDEX(Įvykių_planavimo_priemonė[],MATCH($H$6&\"|\"&ROW(A5),Įvykių_planavimo_priemonė[UNIKALI REIKŠMĖ (APSKAIČIUOTA)],0),2),\"\")","v":""},{"$f":"IFERROR(INDEX(Įvykių_planavimo_priemonė[],MATCH($H$6&\"|\"&ROW(A5),Įvykių_planavimo_priemonė[UNIKALI REIKŠMĖ (APSKAIČIUOTA)],0),3),\"\")","v":""}]
[{"$nulls":4},{"$f":"'Laiko intervalai'!E7","v":"07:00:00"},{"$f":"IFERROR(INDEX(Įvykių_planavimo_priemonė[],MATCH(DATEVALUE(DatosReikš)&Dienotvarkė[[#This Row],[Laikas]],IeškosDataIrLaikas,0),3),\"\")","v":""},null,null,{"$f":"IFERROR(INDEX(Įvykių_planavimo_priemonė[],MATCH($H$6&\"|\"&ROW(A6),Įvykių_planavimo_priemonė[UNIKALI REIKŠMĖ (APSKAIČIUOTA)],0),2),\"\")","v":""},{"$f":"IFERROR(INDEX(Įvykių_planavimo_priemonė[],MATCH($H$6&\"|\"&ROW(A6),Įvykių_planavimo_priemonė[UNIKALI REIKŠMĖ (APSKAIČIUOTA)],0),3),\"\")","v":""}]
[{"$nulls":4},{"$f":"'Laiko intervalai'!E8","v":"07:15:00"},{"$f":"IFERROR(INDEX(Įvykių_planavimo_priemonė[],MATCH(DATEVALUE(DatosReikš)&Dienotvarkė[[#This Row],[Laikas]],IeškosDataIrLaikas,0),3),\"\")","v":""},null,{"$f":"IFERROR(TEXT(DATEVALUE(DatosReikš)+2,\"dddd\"),\"\")","v":"penktadienis"},{"$f":"IFERROR(INDEX(Įvykių_planavimo_priemonė[],MATCH($H$12&\"|\"&ROW(A1),Įvykių_planavimo_priemonė[UNIKALI REIKŠMĖ (APSKAIČIUOTA)],0),2),\"\")","v":""},{"$f":"IFERROR(INDEX(Įvykių_planavimo_priemonė[],MATCH($H$12&\"|\"&ROW(A1),Įvykių_planavimo_priemonė[UNIKALI REIKŠMĖ (APSKAIČIUOTA)],0),3),\"\")","v":""}]
[{"$nulls":4},{"$f":"'Laiko intervalai'!E9","v":"07:30:00"},{"$f":"IFERROR(INDEX(Įvykių_planavimo_priemonė[],MATCH(DATEVALUE(DatosReikš)&Dienotvarkė[[#This Row],[Laikas]],IeškosDataIrLaikas,0),3),\"\")","v":"Eiti į darbą"},null,{"$f":"IFERROR(TEXT(DATEVALUE(DatosReikš)+2,\"d\"),\"\")","v":"24"},{"$f":"IFERROR(INDEX(Įvykių_planavimo_priemonė[],MATCH($H$12&\"|\"&ROW(A2),Įvykių_planavimo_priemonė[UNIKALI REIKŠMĖ (APSKAIČIUOTA)],0),2),\"\")","v":""},{"$f":"IFERROR(INDEX(Įvykių_planavimo_priemonė[],MATCH($H$12&\"|\"&ROW(A2),Įvykių_planavimo_priemonė[UNIKALI REIKŠMĖ (APSKAIČIUOTA)],0),3),\"\")","v":""}]
[null,"PERŽIŪRĖTI TVARKARAŠTĮ",null,null,{"$f":"'Laiko intervalai'!E10","v":"07:45:00"},{"$f":"IFERROR(INDEX(Įvykių_planavimo_priemonė[],MATCH(DATEVALUE(DatosReikš)&Dienotvarkė[[#This Row],[Laikas]],IeškosDataIrLaikas,0),3),\"\")","v":""},null,null,{"$f":"IFERROR(INDEX(Įvykių_planavimo_priemonė[],MATCH($H$12&\"|\"&ROW(A3),Įvykių_planavimo_priemonė[UNIKALI REIKŠMĖ (APSKAIČIUOTA)],0),2),\"\")","v":""},{"$f":"IFERROR(INDEX(Įvykių_planavimo_priemonė[],MATCH($H$12&\"|\"&ROW(A3),Įvykių_planavimo_priemonė[UNIKALI REIKŠMĖ (APSKAIČIUOTA)],0),3),\"\")","v":""}]
[{"$nulls":4},{"$f":"'Laiko intervalai'!E11","v":"08:00:00"},{"$f":"IFERROR(INDEX(Įvykių_planavimo_priemonė[],MATCH(DATEVALUE(DatosReikš)&Dienotvarkė[[#This Row],[Laikas]],IeškosDataIrLaikas,0),3),\"\")","v":"Pradėti pamainą"},null,{"$f":"IFERROR(DatosReikš+2,\"\")","v":"2022-06-24"},{"$f":"IFERROR(INDEX(Įvykių_planavimo_priemonė[],MATCH($H$12&\"|\"&ROW(A4),Įvykių_planavimo_priemonė[UNIKALI REIKŠMĖ (APSKAIČIUOTA)],0),2),\"\")","v":""},{"$f":"IFERROR(INDEX(Įvykių_planavimo_priemonė[],MATCH($H$12&\"|\"&ROW(A4),Įvykių_planavimo_priemonė[UNIKALI REIKŠMĖ (APSKAIČIUOTA)],0),3),\"\")","v":""}]
[null,"Metai",null,null,{"$f":"'Laiko intervalai'!E12","v":"08:15:00"},{"$f":"IFERROR(INDEX(Įvykių_planavimo_priemonė[],MATCH(DATEVALUE(DatosReikš)&Dienotvarkė[[#This Row],[Laikas]],IeškosDataIrLaikas,0),3),\"\")","v":""},null,null,{"$f":"IFERROR(INDEX(Įvykių_planavimo_priemonė[],MATCH($H$12&\"|\"&ROW(A5),Įvykių_planavimo_priemonė[UNIKALI REIKŠMĖ (APSKAIČIUOTA)],0),2),\"\")","v":""},{"$f":"IFERROR(INDEX(Įvykių_planavimo_priemonė[],MATCH($H$12&\"|\"&ROW(A5),Įvykių_planavimo_priemonė[UNIKALI REIKŠMĖ (APSKAIČIUOTA)],0),3),\"\")","v":""}]
[{"$nulls":4},{"$f":"'Laiko intervalai'!E13","v":"08:30:00"},{"$f":"IFERROR(INDEX(Įvykių_planavimo_priemonė[],MATCH(DATEVALUE(DatosReikš)&Dienotvarkė[[#This Row],[Laikas]],IeškosDataIrLaikas,0),3),\"\")","v":""},null,null,{"$f":"IFERROR(INDEX(Įvykių_planavimo_priemonė[],MATCH($H$12&\"|\"&ROW(A6),Įvykių_planavimo_priemonė[UNIKALI REIKŠMĖ (APSKAIČIUOTA)],0),2),\"\")","v":""},{"$f":"IFERROR(INDEX(Įvykių_planavimo_priemonė[],MATCH($H$12&\"|\"&ROW(A6),Įvykių_planavimo_priemonė[UNIKALI REIKŠMĖ (APSKAIČIUOTA)],0),3),\"\")","v":""}]
[null,"Mėnuo",null,null,{"$f":"'Laiko intervalai'!E14","v":"08:45:00"},{"$f":"IFERROR(INDEX(Įvykių_planavimo_priemonė[],MATCH(DATEVALUE(DatosReikš)&Dienotvarkė[[#This Row],[Laikas]],IeškosDataIrLaikas,0),3),\"\")","v":""},null,{"$f":"IFERROR(TEXT(DATEVALUE(DatosReikš)+3,\"dddd\"),\"\")","v":"šeštadienis"},{"$f":"IFERROR(INDEX(Įvykių_planavimo_priemonė[],MATCH($H$18&\"|\"&ROW(A1),Įvykių_planavimo_priemonė[UNIKALI REIKŠMĖ (APSKAIČIUOTA)],0),2),\"\")","v":""},{"$f":"IFERROR(INDEX(Įvykių_planavimo_priemonė[],MATCH($H$18&\"|\"&ROW(A1),Įvykių_planavimo_priemonė[UNIKALI REIKŠMĖ (APSKAIČIUOTA)],0),3),\"\")","v":""}]
[{"$nulls":4},{"$f":"'Laiko intervalai'!E15","v":"09:00:00"},{"$f":"IFERROR(INDEX(Įvykių_planavimo_priemonė[],MATCH(DATEVALUE(DatosReikš)&Dienotvarkė[[#This Row],[Laikas]],IeškosDataIrLaikas,0),3),\"\")","v":""},null,{"$f":"IFERROR(TEXT(DATEVALUE(DatosReikš)+3,\"d\"),\"\")","v":"25"},{"$f":"IFERROR(INDEX(Įvykių_planavimo_priemonė[],MATCH($H$18&\"|\"&ROW(A2),Įvykių_planavimo_priemonė[UNIKALI REIKŠMĖ (APSKAIČIUOTA)],0),2),\"\")","v":""},{"$f":"IFERROR(INDEX(Įvykių_planavimo_priemonė[],MATCH($H$18&\"|\"&ROW(A2),Įvykių_planavimo_priemonė[UNIKALI REIKŠMĖ (APSKAIČIUOTA)],0),3),\"\")","v":""}]
[null,"Diena",null,null,{"$f":"'Laiko intervalai'!E16","v":"09:15:00"},{"$f":"IFERROR(INDEX(Įvykių_planavimo_priemonė[],MATCH(DATEVALUE(DatosReikš)&Dienotvarkė[[#This Row],[Laikas]],IeškosDataIrLaikas,0),3),\"\")","v":""},null,null,{"$f":"IFERROR(INDEX(Įvykių_planavimo_priemonė[],MATCH($H$18&\"|\"&ROW(A3),Įvykių_planavimo_priemonė[UNIKALI REIKŠMĖ (APSKAIČIUOTA)],0),2),\"\")","v":""},{"$f":"IFERROR(INDEX(Įvykių_planavimo_priemonė[],MATCH($H$18&\"|\"&ROW(A3),Įvykių_planavimo_priemonė[UNIKALI REIKŠMĖ (APSKAIČIUOTA)],0),3),\"\")","v":""}]
[{"$nulls":4},{"$f":"'Laiko intervalai'!E17","v":"09:30:00"},{"$f":"IFERROR(INDEX(Įvykių_planavimo_priemonė[],MATCH(DATEVALUE(DatosReikš)&Dienotvarkė[[#This Row],[Laikas]],IeškosDataIrLaikas,0),3),\"\")","v":""},null,{"$f":"IFERROR(DatosReikš+3,\"\")","v":"2022-06-25"},{"$f":"IFERROR(INDEX(Įvykių_planavimo_priemonė[],MATCH($H$18&\"|\"&ROW(A4),Įvykių_planavimo_priemonė[UNIKALI REIKŠMĖ (APSKAIČIUOTA)],0),2),\"\")","v":""},{"$f":"IFERROR(INDEX(Įvykių_planavimo_priemonė[],MATCH($H$18&\"|\"&ROW(A4),Įvykių_planavimo_priemonė[UNIKALI REIKŠMĖ (APSKAIČIUOTA)],0),3),\"\")","v":""}]
[null,"REDAGUOTI TVARKARAŠTĮ",null,null,{"$f":"'Laiko intervalai'!E18","v":"09:45:00"},{"$f":"IFERROR(INDEX(Įvykių_planavimo_priemonė[],MATCH(DATEVALUE(DatosReikš)&Dienotvarkė[[#This Row],[Laikas]],IeškosDataIrLaikas,0),3),\"\")","v":""},null,null,{"$f":"IFERROR(INDEX(Įvykių_planavimo_priemonė[],MATCH($H$18&\"|\"&ROW(A5),Įvykių_planavimo_priemonė[UNIKALI REIKŠMĖ (APSKAIČIUOTA)],0),2),\"\")","v":""},{"$f":"IFERROR(INDEX(Įvykių_planavimo_priemonė[],MATCH($H$18&\"|\"&ROW(A5),Įvykių_planavimo_priemonė[UNIKALI REIKŠMĖ (APSKAIČIUOTA)],0),3),\"\")","v":""}]
[{"$nulls":4},{"$f":"'Laiko intervalai'!E19","v":"10:00:00"},{"$f":"IFERROR(INDEX(Įvykių_planavimo_priemonė[],MATCH(DATEVALUE(DatosReikš)&Dienotvarkė[[#This Row],[Laikas]],IeškosDataIrLaikas,0),3),\"\")","v":"Pertrauka"},null,null,{"$f":"IFERROR(INDEX(Įvykių_planavimo_priemonė[],MATCH($H$18&\"|\"&ROW(A6),Įvykių_planavimo_priemonė[UNIKALI REIKŠMĖ (APSKAIČIUOTA)],0),2),\"\")","v":""},{"$f":"IFERROR(INDEX(Įvykių_planavimo_priemonė[],MATCH($H$18&\"|\"&ROW(A6),Įvykių_planavimo_priemonė[UNIKALI REIKŠMĖ (APSKAIČIUOTA)],0),3),\"\")","v":""}]
[null,"Pasirinkite, jei norite redaguoti laiko intervalus",null,null,{"$f":"'Laiko intervalai'!E20","v":"10:15:00"},{"$f":"IFERROR(INDEX(Įvykių_planavimo_priemonė[],MATCH(DATEVALUE(DatosReikš)&Dienotvarkė[[#This Row],[Laikas]],IeškosDataIrLaikas,0),3),\"\")","v":""},null,{"$f":"IFERROR(TEXT(DATEVALUE(DatosReikš)+4,\"dddd\"),\"\")","v":"sekmadienis"},{"$f":"IFERROR(INDEX(Įvykių_planavimo_priemonė[],MATCH($H$24&\"|\"&ROW(A1),Įvykių_planavimo_priemonė[UNIKALI REIKŠMĖ (APSKAIČIUOTA)],0),2),\"\")","v":""},{"$f":"IFERROR(INDEX(Įvykių_planavimo_priemonė[],MATCH($H$24&\"|\"&ROW(A1),Įvykių_planavimo_priemonė[UNIKALI REIKŠMĖ (APSKAIČIUOTA)],0),3),\"\")","v":""}]
[{"$nulls":4},{"$f":"'Laiko intervalai'!E21","v":"10:30:00"},{"$f":"IFERROR(INDEX(Įvykių_planavimo_priemonė[],MATCH(DATEVALUE(DatosReikš)&Dienotvarkė[[#This Row],[Laikas]],IeškosDataIrLaikas,0),3),\"\")","v":""},null,{"$f":"IFERROR(TEXT(DATEVALUE(DatosReikš)+4,\"d\"),\"\")","v":"26"},{"$f":"IFERROR(INDEX(Įvykių_planavimo_priemonė[],MATCH($H$24&\"|\"&ROW(A2),Įvykių_planavimo_priemonė[UNIKALI REIKŠMĖ (APSKAIČIUOTA)],0),2),\"\")","v":""},{"$f":"IFERROR(INDEX(Įvykių_planavimo_priemonė[],MATCH($H$24&\"|\"&ROW(A2),Įvykių_planavimo_priemonė[UNIKALI REIKŠMĖ (APSKAIČIUOTA)],0),3),\"\")","v":""}]
[null,"Spustelėkite, jei norite įtraukti naują įvykį",null,null,{"$f":"'Laiko intervalai'!E22","v":"10:45:00"},{"$f":"IFERROR(INDEX(Įvykių_planavimo_priemonė[],MATCH(DATEVALUE(DatosReikš)&Dienotvarkė[[#This Row],[Laikas]],IeškosDataIrLaikas,0),3),\"\")","v":""},null,null,{"$f":"IFERROR(INDEX(Įvykių_planavimo_priemonė[],MATCH($H$24&\"|\"&ROW(A3),Įvykių_planavimo_priemonė[UNIKALI REIKŠMĖ (APSKAIČIUOTA)],0),2),\"\")","v":""},{"$f":"IFERROR(INDEX(Įvykių_planavimo_priemonė[],MATCH($H$24&\"|\"&ROW(A3),Įvykių_planavimo_priemonė[UNIKALI REIKŠMĖ (APSKAIČIUOTA)],0),3),\"\")","v":""}]
[{"$nulls":4},{"$f":"'Laiko intervalai'!E23","v":"11:00:00"},{"$f":"IFERROR(INDEX(Įvykių_planavimo_priemonė[],MATCH(DATEVALUE(DatosReikš)&Dienotvarkė[[#This Row],[Laikas]],IeškosDataIrLaikas,0),3),\"\")","v":""},null,{"$f":"IFERROR(DatosReikš+4,\"\")","v":"2022-06-26"},{"$f":"IFERROR(INDEX(Įvykių_planavimo_priemonė[],MATCH($H$24&\"|\"&ROW(A4),Įvykių_planavimo_priemonė[UNIKALI REIKŠMĖ (APSKAIČIUOTA)],0),2),\"\")","v":""},{"$f":"IFERROR(INDEX(Įvykių_planavimo_priemonė[],MATCH($H$24&\"|\"&ROW(A4),Įvykių_planavimo_priemonė[UNIKALI REIKŠMĖ (APSKAIČIUOTA)],0),3),\"\")","v":""}]
[null,"PARYŠKINTI TVARKARAŠTYJE:",null,null,{"$f":"'Laiko intervalai'!E24","v":"11:15:00"},{"$f":"IFERROR(INDEX(Įvykių_planavimo_priemonė[],MATCH(DATEVALUE(DatosReikš)&Dienotvarkė[[#This Row],[Laikas]],IeškosDataIrLaikas,0),3),\"\")","v":""},null,null,{"$f":"IFERROR(INDEX(Įvykių_planavimo_priemonė[],MATCH($H$24&\"|\"&ROW(A5),Įvykių_planavimo_priemonė[UNIKALI REIKŠMĖ (APSKAIČIUOTA)],0),2),\"\")","v":""},{"$f":"IFERROR(INDEX(Įvykių_planavimo_priemonė[],MATCH($H$24&\"|\"&ROW(A5),Įvykių_planavimo_priemonė[UNIKALI REIKŠMĖ (APSKAIČIUOTA)],0),3),\"\")","v":""}]
[null,"Pertrauka",null,null,{"$f":"'Laiko intervalai'!E25","v":"11:30:00"},{"$f":"IFERROR(INDEX(Įvykių_planavimo_priemonė[],MATCH(DATEVALUE(DatosReikš)&Dienotvarkė[[#This Row],[Laikas]],IeškosDataIrLaikas,0),3),\"\")","v":""},null,{"$f":"IFERROR(TEXT(DATEVALUE(DatosReikš)+5,\"dddd\"),\"\")","v":"pirmadienis"},{"$f":"IFERROR(INDEX(Įvykių_planavimo_priemonė[],MATCH($H$29&\"|\"&ROW(A1),Įvykių_planavimo_priemonė[UNIKALI REIKŠMĖ (APSKAIČIUOTA)],0),2),\"\")","v":""},{"$f":"IFERROR(INDEX(Įvykių_planavimo_priemonė[],MATCH($H$29&\"|\"&ROW(A1),Įvykių_planavimo_priemonė[UNIKALI REIKŠMĖ (APSKAIČIUOTA)],0),3),\"\")","v":""}]
[{"$nulls":4},{"$f":"'Laiko intervalai'!E26","v":"11:45:00"},{"$f":"IFERROR(INDEX(Įvykių_planavimo_priemonė[],MATCH(DATEVALUE(DatosReikš)&Dienotvarkė[[#This Row],[Laikas]],IeškosDataIrLaikas,0),3),\"\")","v":""},null,{"$f":"IFERROR(TEXT(DATEVALUE(DatosReikš)+5,\"d\"),\"\")","v":"27"},{"$f":"IFERROR(INDEX(Įvykių_planavimo_priemonė[],MATCH($H$29&\"|\"&ROW(A2),Įvykių_planavimo_priemonė[UNIKALI REIKŠMĖ (APSKAIČIUOTA)],0),2),\"\")","v":""},{"$f":"IFERROR(INDEX(Įvykių_planavimo_priemonė[],MATCH($H$29&\"|\"&ROW(A2),Įvykių_planavimo_priemonė[UNIKALI REIKŠMĖ (APSKAIČIUOTA)],0),3),\"\")","v":""}]
[{"$nulls":4},{"$f":"'Laiko intervalai'!E27","v":"12:00:00"},{"$f":"IFERROR(INDEX(Įvykių_planavimo_priemonė[],MATCH(DATEVALUE(DatosReikš)&Dienotvarkė[[#This Row],[Laikas]],IeškosDataIrLaikas,0),3),\"\")","v":"Pietūs"},null,null,{"$f":"IFERROR(INDEX(Įvykių_planavimo_priemonė[],MATCH($H$29&\"|\"&ROW(A3),Įvykių_planavimo_priemonė[UNIKALI REIKŠMĖ (APSKAIČIUOTA)],0),2),\"\")","v":""},{"$f":"IFERROR(INDEX(Įvykių_planavimo_priemonė[],MATCH($H$29&\"|\"&ROW(A3),Įvykių_planavimo_priemonė[UNIKALI REIKŠMĖ (APSKAIČIUOTA)],0),3),\"\")","v":""}]
[{"$nulls":4},{"$f":"'Laiko intervalai'!E28","v":"12:15:00"},{"$f":"IFERROR(INDEX(Įvykių_planavimo_priemonė[],MATCH(DATEVALUE(DatosReikš)&Dienotvarkė[[#This Row],[Laikas]],IeškosDataIrLaikas,0),3),\"\")","v":""},null,{"$f":"IFERROR(DatosReikš+5,\"\")","v":"2022-06-27"},{"$f":"IFERROR(INDEX(Įvykių_planavimo_priemonė[],MATCH($H$29&\"|\"&ROW(A4),Įvykių_planavimo_priemonė[UNIKALI REIKŠMĖ (APSKAIČIUOTA)],0),2),\"\")","v":""},{"$f":"IFERROR(INDEX(Įvykių_planavimo_priemonė[],MATCH($H$29&\"|\"&ROW(A4),Įvykių_planavimo_priemonė[UNIKALI REIKŠMĖ (APSKAIČIUOTA)],0),3),\"\")","v":""}]
[{"$nulls":4},{"$f":"'Laiko intervalai'!E29","v":"12:30:00"},{"$f":"IFERROR(INDEX(Įvykių_planavimo_priemonė[],MATCH(DATEVALUE(DatosReikš)&Dienotvarkė[[#This Row],[Laikas]],IeškosDataIrLaikas,0),3),\"\")","v":""},null,null,{"$f":"IFERROR(INDEX(Įvykių_planavimo_priemonė[],MATCH($H$29&\"|\"&ROW(A5),Įvykių_planavimo_priemonė[UNIKALI REIKŠMĖ (APSKAIČIUOTA)],0),2),\"\")","v":""},{"$f":"IFERROR(INDEX(Įvykių_planavimo_priemonė[],MATCH($H$29&\"|\"&ROW(A5),Įvykių_planavimo_priemonė[UNIKALI REIKŠMĖ (APSKAIČIUOTA)],0),3),\"\")","v":""}]
[{"$nulls":4},{"$f":"'Laiko intervalai'!E30","v":"12:45:00"},{"$f":"IFERROR(INDEX(Įvykių_planavimo_priemonė[],MATCH(DATEVALUE(DatosReikš)&Dienotvarkė[[#This Row],[Laikas]],IeškosDataIrLaikas,0),3),\"\")","v":""},null,{"$f":"IFERROR(TEXT(DATEVALUE(DatosReikš)+6,\"dddd\"),\"\")","v":"antradienis"},{"$f":"IFERROR(INDEX(Įvykių_planavimo_priemonė[],MATCH($H$34&\"|\"&ROW(A1),Įvykių_planavimo_priemonė[UNIKALI REIKŠMĖ (APSKAIČIUOTA)],0),2),\"\")","v":""},{"$f":"IFERROR(INDEX(Įvykių_planavimo_priemonė[],MATCH($H$34&\"|\"&ROW(A1),Įvykių_planavimo_priemonė[UNIKALI REIKŠMĖ (APSKAIČIUOTA)],0),3),\"\")","v":""}]
[{"$nulls":4},{"$f":"'Laiko intervalai'!E31","v":"13:00:00"},{"$f":"IFERROR(INDEX(Įvykių_planavimo_priemonė[],MATCH(DATEVALUE(DatosReikš)&Dienotvarkė[[#This Row],[Laikas]],IeškosDataIrLaikas,0),3),\"\")","v":""},null,{"$f":"IFERROR(TEXT(DATEVALUE(DatosReikš)+6,\"d\"),\"\")","v":"28"},{"$f":"IFERROR(INDEX(Įvykių_planavimo_priemonė[],MATCH($H$34&\"|\"&ROW(A2),Įvykių_planavimo_priemonė[UNIKALI REIKŠMĖ (APSKAIČIUOTA)],0),2),\"\")","v":""},{"$f":"IFERROR(INDEX(Įvykių_planavimo_priemonė[],MATCH($H$34&\"|\"&ROW(A2),Įvykių_planavimo_priemonė[UNIKALI REIKŠMĖ (APSKAIČIUOTA)],0),3),\"\")","v":""}]
[{"$nulls":4},{"$f":"'Laiko intervalai'!E32","v":"13:15:00"},{"$f":"IFERROR(INDEX(Įvykių_planavimo_priemonė[],MATCH(DATEVALUE(DatosReikš)&Dienotvarkė[[#This Row],[Laikas]],IeškosDataIrLaikas,0),3),\"\")","v":""},null,null,{"$f":"IFERROR(INDEX(Įvykių_planavimo_priemonė[],MATCH($H$34&\"|\"&ROW(A3),Įvykių_planavimo_priemonė[UNIKALI REIKŠMĖ (APSKAIČIUOTA)],0),2),\"\")","v":""},{"$f":"IFERROR(INDEX(Įvykių_planavimo_priemonė[],MATCH($H$34&\"|\"&ROW(A3),Įvykių_planavimo_priemonė[UNIKALI REIKŠMĖ (APSKAIČIUOTA)],0),3),\"\")","v":""}]
[{"$nulls":4},{"$f":"'Laiko intervalai'!E33","v":"13:30:00"},{"$f":"IFERROR(INDEX(Įvykių_planavimo_priemonė[],MATCH(DATEVALUE(DatosReikš)&Dienotvarkė[[#This Row],[Laikas]],IeškosDataIrLaikas,0),3),\"\")","v":"Skambutis įmonėje"},null,{"$f":"IFERROR(DatosReikš+6,\"\")","v":"2022-06-28"},{"$f":"IFERROR(INDEX(Įvykių_planavimo_priemonė[],MATCH($H$34&\"|\"&ROW(A4),Įvykių_planavimo_priemonė[UNIKALI REIKŠMĖ (APSKAIČIUOTA)],0),2),\"\")","v":""},{"$f":"IFERROR(INDEX(Įvykių_planavimo_priemonė[],MATCH($H$34&\"|\"&ROW(A4),Įvykių_planavimo_priemonė[UNIKALI REIKŠMĖ (APSKAIČIUOTA)],0),3),\"\")","v":""}]
[{"$nulls":4},{"$f":"'Laiko intervalai'!E34","v":"13:45:00"},{"$f":"IFERROR(INDEX(Įvykių_planavimo_priemonė[],MATCH(DATEVALUE(DatosReikš)&Dienotvarkė[[#This Row],[Laikas]],IeškosDataIrLaikas,0),3),\"\")","v":""},null,null,{"$f":"IFERROR(INDEX(Įvykių_planavimo_priemonė[],MATCH($H$34&\"|\"&ROW(A5),Įvykių_planavimo_priemonė[UNIKALI REIKŠMĖ (APSKAIČIUOTA)],0),2),\"\")","v":""},{"$f":"IFERROR(INDEX(Įvykių_planavimo_priemonė[],MATCH($H$34&\"|\"&ROW(A4),Įvykių_planavimo_priemonė[UNIKALI REIKŠMĖ (APSKAIČIUOTA)],0),3),\"\")","v":""}]
[{"$nulls":4},{"$f":"'Laiko intervalai'!E35","v":"14:00:00"},{"$f":"IFERROR(INDEX(Įvykių_planavimo_priemonė[],MATCH(DATEVALUE(DatosReikš)&Dienotvarkė[[#This Row],[Laikas]],IeškosDataIrLaikas,0),3),\"\")","v":""}]
[{"$nulls":4},{"$f":"'Laiko intervalai'!E36","v":"14:15:00"},{"$f":"IFERROR(INDEX(Įvykių_planavimo_priemonė[],MATCH(DATEVALUE(DatosReikš)&Dienotvarkė[[#This Row],[Laikas]],IeškosDataIrLaikas,0),3),\"\")","v":""}]
[{"$nulls":4},{"$f":"'Laiko intervalai'!E37","v":"14:30:00"},{"$f":"IFERROR(INDEX(Įvykių_planavimo_priemonė[],MATCH(DATEVALUE(DatosReikš)&Dienotvarkė[[#This Row],[Laikas]],IeškosDataIrLaikas,0),3),\"\")","v":""}]
[{"$nulls":4},{"$f":"'Laiko intervalai'!E38","v":"14:45:00"},{"$f":"IFERROR(INDEX(Įvykių_planavimo_priemonė[],MATCH(DATEVALUE(DatosReikš)&Dienotvarkė[[#This Row],[Laikas]],IeškosDataIrLaikas,0),3),\"\")","v":""}]
[{"$nulls":4},{"$f":"'Laiko intervalai'!E39","v":"15:00:00"},{"$f":"IFERROR(INDEX(Įvykių_planavimo_priemonė[],MATCH(DATEVALUE(DatosReikš)&Dienotvarkė[[#This Row],[Laikas]],IeškosDataIrLaikas,0),3),\"\")","v":"Pertrauka"}]
[{"$nulls":4},{"$f":"'Laiko intervalai'!E40","v":"15:15:00"},{"$f":"IFERROR(INDEX(Įvykių_planavimo_priemonė[],MATCH(DATEVALUE(DatosReikš)&Dienotvarkė[[#This Row],[Laikas]],IeškosDataIrLaikas,0),3),\"\")","v":""}]
[{"$nulls":4},{"$f":"'Laiko intervalai'!E41","v":"15:30:00"},{"$f":"IFERROR(INDEX(Įvykių_planavimo_priemonė[],MATCH(DATEVALUE(DatosReikš)&Dienotvarkė[[#This Row],[Laikas]],IeškosDataIrLaikas,0),3),\"\")","v":""}]
[{"$nulls":4},{"$f":"'Laiko intervalai'!E42","v":"15:45:00"},{"$f":"IFERROR(INDEX(Įvykių_planavimo_priemonė[],MATCH(DATEVALUE(DatosReikš)&Dienotvarkė[[#This Row],[Laikas]],IeškosDataIrLaikas,0),3),\"\")","v":""}]
[{"$nulls":4},{"$f":"'Laiko intervalai'!E43","v":"16:00:00"},{"$f":"IFERROR(INDEX(Įvykių_planavimo_priemonė[],MATCH(DATEVALUE(DatosReikš)&Dienotvarkė[[#This Row],[Laikas]],IeškosDataIrLaikas,0),3),\"\")","v":""}]
[{"$nulls":4},{"$f":"'Laiko intervalai'!E44","v":"16:15:00"},{"$f":"IFERROR(INDEX(Įvykių_planavimo_priemonė[],MATCH(DATEVALUE(DatosReikš)&Dienotvarkė[[#This Row],[Laikas]],IeškosDataIrLaikas,0),3),\"\")","v":""}]
[{"$nulls":4},{"$f":"'Laiko intervalai'!E45","v":"16:30:00"},{"$f":"IFERROR(INDEX(Įvykių_planavimo_priemonė[],MATCH(DATEVALUE(DatosReikš)&Dienotvarkė[[#This Row],[Laikas]],IeškosDataIrLaikas,0),3),\"\")","v":""}]
[{"$nulls":4},{"$f":"'Laiko intervalai'!E46","v":"16:45:00"},{"$f":"IFERROR(INDEX(Įvykių_planavimo_priemonė[],MATCH(DATEVALUE(DatosReikš)&Dienotvarkė[[#This Row],[Laikas]],IeškosDataIrLaikas,0),3),\"\")","v":""}]
[{"$nulls":4},{"$f":"'Laiko intervalai'!E47","v":"17:00:00"},{"$f":"IFERROR(INDEX(Įvykių_planavimo_priemonė[],MATCH(DATEVALUE(DatosReikš)&Dienotvarkė[[#This Row],[Laikas]],IeškosDataIrLaikas,0),3),\"\")","v":"Namo"}]
[{"$nulls":4},{"$f":"'Laiko intervalai'!E48","v":"17:15:00"},{"$f":"IFERROR(INDEX(Įvykių_planavimo_priemonė[],MATCH(DATEVALUE(DatosReikš)&Dienotvarkė[[#This Row],[Laikas]],IeškosDataIrLaikas,0),3),\"\")","v":""}]
[{"$nulls":4},{"$f":"'Laiko intervalai'!E49","v":"17:30:00"},{"$f":"IFERROR(INDEX(Įvykių_planavimo_priemonė[],MATCH(DATEVALUE(DatosReikš)&Dienotvarkė[[#This Row],[Laikas]],IeškosDataIrLaikas,0),3),\"\")","v":""}]
[{"$nulls":4},{"$f":"'Laiko intervalai'!E50","v":"17:45:00"},{"$f":"IFERROR(INDEX(Įvykių_planavimo_priemonė[],MATCH(DATEVALUE(DatosReikš)&Dienotvarkė[[#This Row],[Laikas]],IeškosDataIrLaikas,0),3),\"\")","v":""}]
[{"$nulls":4},{"$f":"'Laiko intervalai'!E51","v":"18:00:00"},{"$f":"IFERROR(INDEX(Įvykių_planavimo_priemonė[],MATCH(DATEVALUE(DatosReikš)&Dienotvarkė[[#This Row],[Laikas]],IeškosDataIrLaikas,0),3),\"\")","v":"Futbolo treniruotė"}]
[{"$nulls":4},{"$f":"'Laiko intervalai'!E52","v":"18:15:00"},{"$f":"IFERROR(INDEX(Įvykių_planavimo_priemonė[],MATCH(DATEVALUE(DatosReikš)&Dienotvarkė[[#This Row],[Laikas]],IeškosDataIrLaikas,0),3),\"\")","v":""}]
[{"$nulls":4},{"$f":"'Laiko intervalai'!E53","v":"18:30:00"},{"$f":"IFERROR(INDEX(Įvykių_planavimo_priemonė[],MATCH(DATEVALUE(DatosReikš)&Dienotvarkė[[#This Row],[Laikas]],IeškosDataIrLaikas,0),3),\"\")","v":""}]
[{"$nulls":4},{"$f":"'Laiko intervalai'!E54","v":"18:45:00"},{"$f":"IFERROR(INDEX(Įvykių_planavimo_priemonė[],MATCH(DATEVALUE(DatosReikš)&Dienotvarkė[[#This Row],[Laikas]],IeškosDataIrLaikas,0),3),\"\")","v":""}]
[{"$nulls":4},{"$f":"'Laiko intervalai'!E55","v":"19:00:00"},{"$f":"IFERROR(INDEX(Įvykių_planavimo_priemonė[],MATCH(DATEVALUE(DatosReikš)&Dienotvarkė[[#This Row],[Laikas]],IeškosDataIrLaikas,0),3),\"\")","v":""}]
[{"$nulls":4},{"$f":"'Laiko intervalai'!E56","v":"19:15:00"},{"$f":"IFERROR(INDEX(Įvykių_planavimo_priemonė[],MATCH(DATEVALUE(DatosReikš)&Dienotvarkė[[#This Row],[Laikas]],IeškosDataIrLaikas,0),3),\"\")","v":""}]
[{"$nulls":4},{"$f":"'Laiko intervalai'!E57","v":"19:30:00"},{"$f":"IFERROR(INDEX(Įvykių_planavimo_priemonė[],MATCH(DATEVALUE(DatosReikš)&Dienotvarkė[[#This Row],[Laikas]],IeškosDataIrLaikas,0),3),\"\")","v":""}]
[{"$nulls":4},{"$f":"'Laiko intervalai'!E58","v":"19:45:00"},{"$f":"IFERROR(INDEX(Įvykių_planavimo_priemonė[],MATCH(DATEVALUE(DatosReikš)&Dienotvarkė[[#This Row],[Laikas]],IeškosDataIrLaikas,0),3),\"\")","v":""}]
[{"$nulls":4},{"$f":"'Laiko intervalai'!E59","v":"20:00:00"},{"$f":"IFERROR(INDEX(Įvykių_planavimo_priemonė[],MATCH(DATEVALUE(DatosReikš)&Dienotvarkė[[#This Row],[Laikas]],IeškosDataIrLaikas,0),3),\"\")","v":""}]
[{"$nulls":4},{"$f":"'Laiko intervalai'!E60","v":"20:15:00"},{"$f":"IFERROR(INDEX(Įvykių_planavimo_priemonė[],MATCH(DATEVALUE(DatosReikš)&Dienotvarkė[[#This Row],[Laikas]],IeškosDataIrLaikas,0),3),\"\")","v":""}]
[{"$nulls":4},{"$f":"'Laiko intervalai'!E61","v":"20:30:00"},{"$f":"IFERROR(INDEX(Įvykių_planavimo_priemonė[],MATCH(DATEVALUE(DatosReikš)&Dienotvarkė[[#This Row],[Laikas]],IeškosDataIrLaikas,0),3),\"\")","v":""}]
[{"$nulls":4},{"$f":"'Laiko intervalai'!E62","v":"20:45:00"},{"$f":"IFERROR(INDEX(Įvykių_planavimo_priemonė[],MATCH(DATEVALUE(DatosReikš)&Dienotvarkė[[#This Row],[Laikas]],IeškosDataIrLaikas,0),3),\"\")","v":""}]
[{"$nulls":4},{"$f":"'Laiko intervalai'!E63","v":"21:00:00"},{"$f":"IFERROR(INDEX(Įvykių_planavimo_priemonė[],MATCH(DATEVALUE(DatosReikš)&Dienotvarkė[[#This Row],[Laikas]],IeškosDataIrLaikas,0),3),\"\")","v":""}]
[{"$nulls":4},{"$f":"'Laiko intervalai'!E64","v":""},{"$f":"IFERROR(INDEX(Įvykių_planavimo_priemonė[],MATCH(DATEVALUE(DatosReikš)&Dienotvarkė[[#This Row],[Laikas]],IeškosDataIrLaikas,0),3),\"\")","v":""}]
[{"$nulls":4},{"$f":"'Laiko intervalai'!E65","v":""},{"$f":"IFERROR(INDEX(Įvykių_planavimo_priemonė[],MATCH(DATEVALUE(DatosReikš)&Dienotvarkė[[#This Row],[Laikas]],IeškosDataIrLaikas,0),3),\"\")","v":""}]
[{"$nulls":4},{"$f":"'Laiko intervalai'!E66","v":""},{"$f":"IFERROR(INDEX(Įvykių_planavimo_priemonė[],MATCH(DATEVALUE(DatosReikš)&Dienotvarkė[[#This Row],[Laikas]],IeškosDataIrLaikas,0),3),\"\")","v":""}]
[{"$nulls":4},{"$f":"'Laiko intervalai'!E67","v":""},{"$f":"IFERROR(INDEX(Įvykių_planavimo_priemonė[],MATCH(DATEVALUE(DatosReikš)&Dienotvarkė[[#This Row],[Laikas]],IeškosDataIrLaikas,0),3),\"\")","v":""}]
[{"$nulls":4},{"$f":"'Laiko intervalai'!E68","v":""},{"$f":"IFERROR(INDEX(Įvykių_planavimo_priemonė[],MATCH(DATEVALUE(DatosReikš)&Dienotvarkė[[#This Row],[Laikas]],IeškosDataIrLaikas,0),3),\"\")","v":""}]
[{"$nulls":4},{"$f":"'Laiko intervalai'!E69","v":""},{"$f":"IFERROR(INDEX(Įvykių_planavimo_priemonė[],MATCH(DATEVALUE(DatosReikš)&Dienotvarkė[[#This Row],[Laikas]],IeškosDataIrLaikas,0),3),\"\")","v":""}]
[{"$nulls":4},{"$f":"'Laiko intervalai'!E70","v":""},{"$f":"IFERROR(INDEX(Įvykių_planavimo_priemonė[],MATCH(DATEVALUE(DatosReikš)&Dienotvarkė[[#This Row],[Laikas]],IeškosDataIrLaikas,0),3),\"\")","v":""}]
[{"$nulls":4},{"$f":"'Laiko intervalai'!E71","v":""},{"$f":"IFERROR(INDEX(Įvykių_planavimo_priemonė[],MATCH(DATEVALUE(DatosReikš)&Dienotvarkė[[#This Row],[Laikas]],IeškosDataIrLaikas,0),3),\"\")","v":""}]
[{"$nulls":4},{"$f":"'Laiko intervalai'!E72","v":""},{"$f":"IFERROR(INDEX(Įvykių_planavimo_priemonė[],MATCH(DATEVALUE(DatosReikš)&Dienotvarkė[[#This Row],[Laikas]],IeškosDataIrLaikas,0),3),\"\")","v":""}]
[{"$nulls":4},{"$f":"'Laiko intervalai'!E73","v":""},{"$f":"IFERROR(INDEX(Įvykių_planavimo_priemonė[],MATCH(DATEVALUE(DatosReikš)&Dienotvarkė[[#This Row],[Laikas]],IeškosDataIrLaikas,0),3),\"\")","v":""}]
[{"$nulls":4},{"$f":"'Laiko intervalai'!E74","v":""},{"$f":"IFERROR(INDEX(Įvykių_planavimo_priemonė[],MATCH(DATEVALUE(DatosReikš)&Dienotvarkė[[#This Row],[Laikas]],IeškosDataIrLaikas,0),3),\"\")","v":""}]
[{"$nulls":4},{"$f":"'Laiko intervalai'!E75","v":""},{"$f":"IFERROR(INDEX(Įvykių_planavimo_priemonė[],MATCH(DATEVALUE(DatosReikš)&Dienotvarkė[[#This Row],[Laikas]],IeškosDataIrLaikas,0),3),\"\")","v":""}]

{"sheet":"Įvykių planavimo priemonė","index":1,"n_rows":15,"n_cols":8,"rows_kept":15,"merged":[[0,1,0,2],[1,1,4,2],[5,1,6,2],[7,1,7,2]]}
[null,"Įvykių planavimo priemonė"]
[null,{"$f":"DAY(DatosReikš)","v":22},null,null,"DATA","LAIKAS","APRAŠAS","UNIKALI REIKŠMĖ (APSKAIČIUOTA)"]
[{"$nulls":4},{"$f":"TODAY()","v":"2022-06-22"},"06:00:00","Keltis",{"$f":"Įvykių_planavimo_priemonė[[#This Row],[DATA]]&\"|\"&COUNTIF($E$3:E3,E3)","v":"44734|1"}]
[{"$nulls":4},{"$f":"TODAY()","v":"2022-06-22"},"06:30:00","Dušas",{"$f":"Įvykių_planavimo_priemonė[[#This Row],[DATA]]&\"|\"&COUNTIF($E$3:E4,E4)","v":"44734|2"}]
[{"$nulls":4},"2022-06-22","07:30:00","Eiti į darbą",{"$f":"Įvykių_planavimo_priemonė[[#This Row],[DATA]]&\"|\"&COUNTIF($E$3:E5,E5)","v":"44734|3"}]
[null,{"$f":"TEXT(DatosReikš,\"dddd\")","v":"trečiadienis"},null,null,"2022-06-22","08:00:00","Pradėti pamainą",{"$f":"Įvykių_planavimo_priemonė[[#This Row],[DATA]]&\"|\"&COUNTIF($E$3:E6,E6)","v":"44734|4"}]
[{"$nulls":4},"2022-06-22","10:00:00","Pertrauka",{"$f":"Įvykių_planavimo_priemonė[[#This Row],[DATA]]&\"|\"&COUNTIF($E$3:E7,E7)","v":"44734|5"}]
[null,{"$f":"DatosReikš","v":"22 BIRŽELIS 2022"},null,null,"2022-06-22","12:00:00","Pietūs",{"$f":"Įvykių_planavimo_priemonė[[#This Row],[DATA]]&\"|\"&COUNTIF($E$3:E8,E8)","v":"44734|6"}]
[{"$nulls":4},"2022-06-22","13:00:00","Grįžti į darbą",{"$f":"Įvykių_planavimo_priemonė[[#This Row],[DATA]]&\"|\"&COUNTIF($E$3:E9,E9)","v":"44734|7"}]
[null,"Pasirinkite, jei norite redaguoti laiko intervalus",null,null,"2022-06-22","13:30:00","Skambutis įmonėje",{"$f":"Įvykių_planavimo_priemonė[[#This Row],[DATA]]&\"|\"&COUNTIF($E$3:E10,E10)","v":"44734|8"}]
[{"$nulls":4},"2022-06-22","15:00:00","Pertrauka",{"$f":"Įvykių_planavimo_priemonė[[#This Row],[DATA]]&\"|\"&COUNTIF($E$3:E11,E11)","v":"44734|9"}]
[null,"Pasirinkite, jei norite peržiūrėti dienotvarkę",null,null,"2022-06-22","17:00:00","Namo",{"$f":"Įvykių_planavimo_priemonė[[#This Row],[DATA]]&\"|\"&COUNTIF($E$3:E12,E12)","v":"44734|10"}]
[{"$nulls":4},"2022-06-22","18:00:00","Futbolo treniruotė",{"$f":"Įvykių_planavimo_priemonė[[#This Row],[DATA]]&\"|\"&COUNTIF($E$3:E13,E13)","v":"44734|11"}]
[{"$nulls":4},{"$f":"TODAY()+1","v":"2022-06-23"},"06:30:00","Pusryčiai",{"$f":"Įvykių_planavimo_priemonė[[#This Row],[DATA]]&\"|\"&COUNTIF($E$3:E15,E14)","v":"44735|2"}]
[{"$nulls":4},{"$f":"TODAY()+1","v":"2022-06-23"},"07:30:00","Eiti į darbą",{"$f":"Įvykių_planavimo_priemonė[[#This Row],[DATA]]&\"|\"&COUNTIF($E$3:E15,E15)","v":"44735|2"}]

{"sheet":"Laiko intervalai","index":2,"n_rows":75,"n_cols":5,"rows_kept":75,"merged":[[0,1,0,2],[1,1,1,2],[9,1,9,2]]}
[null,"Laiko intervalai"]
[null,"REDAGUOTI LAIKŲ LENTELĘ",null,null,"Laikas"]
[{"$nulls":4},{"$f":"Pradžios_laikas","v":"06:00:00"}]
[null,"Pradžios laikas","06:00:00",null,{"$f":"IFERROR(IF($E3+Pokytis>Pabaigoslaikas,\"\",$E3+Pokytis),\"\")","v":"06:15:00"}]
[{"$nulls":4},{"$f":"IFERROR(IF($E4+Pokytis>Pabaigoslaikas,\"\",$E4+Pokytis),\"\")","v":"06:30:00"}]
[null,"Intervalas","15 MIN.",null,"06:45:00"]
[{"$nulls":4},"07:00:00"]
[null,"Pabaigos laikas","21:00:00",null,"07:15:00"]
[{"$nulls":4},"07:30:00"]
[null,"PERŽIŪRĖTI TVARKARAŠTĮ",null,null,"07:45:00"]
[{"$nulls":4},"08:00:00"]
[null,"Pasirinkite, jei norite peržiūrėti dienotvarkę",null,null,"08:15:00"]
[{"$nulls":4},"08:30:00"]
[null,"Spustelėkite, jei norite įtraukti naują įvykį",null,null,"08:45:00"]
[{"$nulls":4},"09:00:00"]
[{"$nulls":4},"09:15:00"]
[{"$nulls":4},"09:30:00"]
[{"$nulls":4},"09:45:00"]
[{"$nulls":4},"10:00:00"]
[{"$nulls":4},"10:15:00"]
[{"$nulls":4},"10:30:00"]
[{"$nulls":4},"10:45:00"]
[{"$nulls":4},"11:00:00"]
[{"$nulls":4},"11:15:00"]
[{"$nulls":4},"11:30:00"]
[{"$nulls":4},"11:45:00"]
[{"$nulls":4},"12:00:00"]
[{"$nulls":4},"12:15:00"]
[{"$nulls":4},"12:30:00"]
[{"$nulls":4},"12:45:00"]
[{"$nulls":4},"13:00:00"]
[{"$nulls":4},"13:15:00"]
[{"$nulls":4},"13:30:00"]
[{"$nulls":4},"13:45:00"]
[{"$nulls":4},"14:00:00"]
[{"$nulls":4},{"$f":"IFERROR(IF($E35+Pokytis>Pabaigoslaikas,\"\",$E35+Pokytis),\"\")","v":"14:15:00"}]
[{"$nulls":4},"14:30:00"]
[{"$nulls":4},"14:45:00"]
[{"$nulls":4},"15:00:00"]
[{"$nulls":4},"15:15:00"]
[{"$nulls":4},"15:30:00"]
[{"$nulls":4},"15:45:00"]
[{"$nulls":4},"16:00:00"]
[{"$nulls":4},"16:15:00"]
[{"$nulls":4},"16:30:00"]
[{"$nulls":4},"16:45:00"]
[{"$nulls":4},"17:00:00"]
[{"$nulls":4},"17:15:00"]
[{"$nulls":4},"17:30:00"]
[{"$nulls":4},"17:45:00"]
[{"$nulls":4},"18:00:00"]
[{"$nulls":4},"18:15:00"]
[{"$nulls":4},"18:30:00"]
[{"$nulls":4},"18:45:00"]
[{"$nulls":4},"19:00:00"]
[{"$nulls":4},"19:15:00"]
[{"$nulls":4},"19:30:00"]
[{"$nulls":4},"19:45:00"]
[{"$nulls":4},"20:00:00"]
[{"$nulls":4},"20:15:00"]
[{"$nulls":4},"20:30:00"]
[{"$nulls":4},"20:45:00"]
[{"$nulls":4},"21:00:00"]
[{"$nulls":4},""]
[{"$nulls":4},""]
[{"$nulls":4},""]
[{"$nulls":4},""]
[{"$nulls":4},{"$f":"IFERROR(IF($E67+Pokytis>Pabaigoslaikas,\"\",$E67+Pokytis),\"\")","v":""}]
[{"$nulls":4},""]
[{"$nulls":4},""]
[{"$nulls":4},""]
[{"$nulls":4},""]
[{"$nulls":4},""]
[{"$nulls":4},""]
[{"$nulls":4},""]